bitfinex/quotes_SOLUSD_20240914
["timestamp","ask_amount","ask_price","bid_price","bid_amount"]
[1726354997825,24.0314462,137.65,137.59,14.25217798]
[1726355000844,0.25098,137.64,137.58,14.25217798]
[1726355001141,0.25098,137.64,137.59,20.0]
[1726355003732,0.25098,137.64,137.56,20.0]
[1726355003933,7.51628,137.64,137.57,14.25217798]
[1726355004135,23.776884,137.63,137.57,14.25217798]
[1726355005942,23.776884,137.63,137.58,14.25217798]
[1726355014634,23.776884,137.63,137.58,18.03630966]
[1726355014853,23.776884,137.63,137.58,14.25217798]
[1726355015239,23.776884,137.63,137.58,18.03630966]
[1726355015452,23.776884,137.63,137.58,14.25217798]
[1726355016352,23.776884,137.63,137.58,18.03733936]
[1726355016532,23.776884,137.63,137.58,21.82280379]
[1726355016936,23.776884,137.63,137.58,18.03733936]
[1726355017237,0.2545622,137.65,137.6,14.25217798]
[1726355018469,24.0314462,137.65,137.6,14.25217798]
[1726355019944,24.0314462,137.65,137.59,18.03667278]
[1726355020148,24.0314462,137.65,137.59,18.0372285]
[1726355020847,24.0314462,137.65,137.59,14.25217798]
[1726355021439,24.0314462,137.65,137.59,18.0372285]
[1726355021663,24.0314462,137.65,137.59,14.25217798]
[1726355022363,24.0314462,137.65,137.59,18.0372285]
[1726355022549,24.0314462,137.65,137.59,14.25217798]
[1726355024362,0.37647,137.64,137.59,3.78463877]
[1726355024669,31.418654,137.64,137.58,20.0]
[1726355025853,31.418654,137.64,137.57,14.25217798]
[1726355026039,31.418654,137.64,137.58,3.78561744]
[1726355026460,31.418654,137.64,137.57,14.25217798]
[1726355027042,31.418654,137.64,137.58,3.78543464]
[1726355027768,31.418654,137.64,137.57,14.25217798]
[1726355027941,31.418654,137.64,137.58,3.78581602]
[1726355028145,31.418654,137.64,137.57,14.25217798]
[1726355028342,31.418654,137.64,137.58,3.78559379]
[1726355028654,31.418654,137.64,137.57,14.25217798]
[1726355028858,31.418654,137.64,137.58,3.7856619]
[1726355029169,31.418654,137.64,137.57,14.25217798]
[1726355029468,31.418654,137.64,137.58,3.78581448]
[1726355029846,31.418654,137.64,137.57,14.25217798]
[1726355030051,31.418654,137.64,137.58,3.78545122]
[1726355030367,31.418654,137.64,137.59,3.78545122]
[1726355030546,31.418654,137.64,137.57,14.25217798]
[1726355030749,31.418654,137.64,137.58,3.78544222]
[1726355030979,31.418654,137.64,137.57,14.25217798]
[1726355030980,31.418654,137.64,137.59,3.78544222]
[1726355031263,31.418654,137.64,137.57,14.25217798]
[1726355031442,31.418654,137.64,137.58,3.78552843]
[1726355031642,31.418654,137.64,137.59,3.78552843]
[1726355031844,31.418654,137.64,137.57,14.25217798]
[1726355032142,31.418654,137.64,137.58,3.7854001]
[1726355032342,31.418654,137.64,137.59,3.7854001]
[1726355032544,31.418654,137.64,137.57,14.25217798]
[1726355032760,31.418654,137.64,137.58,3.7852806]
[1726355032965,31.418654,137.64,137.59,3.7852806]
[1726355033163,31.418654,137.64,137.57,14.25217798]
[1726355033363,31.418654,137.64,137.58,3.78527935]
[1726355033568,31.418654,137.64,137.59,3.78527935]
[1726355033867,31.418654,137.64,137.57,14.25217798]
[1726355034056,31.418654,137.64,137.58,3.78526253]
[1726355034243,31.418654,137.64,137.59,3.78526253]
[1726355034443,31.418654,137.64,137.57,14.25217798]
[1726355034660,31.418654,137.64,137.58,3.78519601]
[1726355034843,31.418654,137.64,137.59,3.78519601]
[1726355035044,31.418654,137.64,137.57,14.25217798]
[1726355035354,31.418654,137.64,137.58,3.78521331]
[1726355035554,31.418654,137.64,137.59,3.78521331]
[1726355035765,31.418654,137.64,137.57,14.25217798]
[1726355035959,31.418654,137.64,137.58,3.78528237]
[1726355036160,31.418654,137.64,137.59,3.78528237]
[1726355036358,31.418654,137.64,137.57,14.25217798]
[1726355037048,31.418654,137.64,137.58,3.78560627]
[1726355037365,31.418654,137.64,137.59,3.78560627]
[1726355037579,31.418654,137.64,137.57,14.25217798]
[1726355038067,31.418654,137.64,137.58,3.78534857]
[1726355038266,31.418654,137.64,137.59,3.78534857]
[1726355038446,31.418654,137.64,137.57,14.25217798]
[1726355038647,31.418654,137.64,137.58,3.78530936]
[1726355038882,31.418654,137.64,137.59,3.78530936]
[1726355039163,31.418654,137.64,137.57,14.25217798]
[1726355039374,31.418654,137.64,137.58,3.78532904]
[1726355039542,31.418654,137.64,137.59,3.78532904]
[1726355039742,31.418654,137.64,137.57,14.25217798]
[1726355039966,31.418654,137.64,137.58,3.78516168]
[1726355040166,31.418654,137.64,137.59,3.78516168]
[1726355040467,31.418654,137.64,137.57,14.25217798]
[1726355040774,31.418654,137.64,137.58,3.78470991]
[1726355040950,31.418654,137.64,137.59,3.78470991]
[1726355041248,31.418654,137.64,137.57,14.25217798]
[1726355041448,31.418654,137.64,137.58,3.78421806]
[1726355041654,31.418654,137.64,137.59,3.78421806]
[1726355041857,31.418654,137.64,137.57,14.25217798]
[1726355042146,31.418654,137.64,137.58,3.78413192]
[1726355042577,31.418654,137.64,137.59,3.7841302]
[1726355043168,31.418654,137.64,137.57,14.25217798]
[1726355043574,24.153354,137.64,137.57,14.25217798]
[1726355043787,24.0314462,137.65,137.59,14.25217798]
[1726355044285,24.0314462,137.65,137.6,3.7842026]
[1726355044286,0.12549,137.64,137.6,3.7842026]
[1726355044464,0.12549,137.64,137.59,14.25217798]
[1726355044665,0.12549,137.64,137.6,3.78339616]
[1726355044883,0.12549,137.64,137.59,14.25217798]
[1726355045087,0.12549,137.64,137.6,18.03569889]
[1726355045256,0.12549,137.64,137.6,14.25217798]
[1726355047775,0.12549,137.64,137.59,14.25217798]
[1726355047967,0.12549,137.64,137.6,3.78408257]
[1726355048174,0.12549,137.64,137.59,14.25217798]
[1726355048381,0.12549,137.64,137.6,3.7840802]
[1726355048675,0.12549,137.64,137.59,14.25217798]
[1726355048879,0.12549,137.64,137.6,3.78308801]
[1726355049188,0.12549,137.64,137.59,14.25217798]
[1726355049363,0.12549,137.64,137.6,3.78286704]
[1726355049558,0.12549,137.64,137.59,14.25217798]
[1726355049758,0.12549,137.64,137.6,3.78294994]
[1726355049959,0.12549,137.64,137.59,14.25217798]
[1726355050262,0.12549,137.64,137.6,3.78303366]
[1726355050466,0.12549,137.64,137.59,14.25217798]
[1726355050674,0.12549,137.64,137.6,3.78290556]
[1726355050874,0.12549,137.64,137.59,14.25217798]
[1726355051073,0.12549,137.64,137.6,3.78278251]
[1726355051277,0.12549,137.64,137.59,14.25217798]
[1726355051482,0.12549,137.64,137.6,3.78276441]
[1726355051687,0.12549,137.64,137.59,14.25217798]
[1726355051862,0.12549,137.64,137.6,3.78269536]
[1726355052062,0.12549,137.64,137.59,14.25217798]
[1726355052288,0.12549,137.64,137.6,3.78275613]
[1726355052489,0.12549,137.64,137.59,14.25217798]
[1726355052880,24.153354,137.64,137.59,14.25217798]
[1726355053081,46.390964,137.62,137.56,20.0]
[1726355053384,46.390964,137.62,137.57,3.78505757]
[1726355053585,46.390964,137.62,137.58,3.78505757]
[1726355053783,46.390964,137.62,137.57,14.25217798]
[1726355053960,46.390964,137.62,137.58,3.78478644]
[1726355054164,46.390964,137.62,137.57,14.25217798]
[1726355054391,46.390964,137.62,137.58,3.78451174]
[1726355054689,46.390964,137.62,137.57,14.25217798]
[1726355054884,46.390964,137.62,137.58,3.78485165]
[1726355055088,46.390964,137.62,137.57,14.25217798]
[1726355055382,46.390964,137.62,137.58,3.78513046]
[1726355055583,46.390964,137.62,137.57,14.25217798]
[1726355055802,46.390964,137.62,137.58,3.78454115]
[1726355055967,46.390964,137.62,137.57,14.25217798]
[1726355056163,46.390964,137.62,137.58,3.78485465]
[1726355056358,46.390964,137.62,137.58,3.78460099]
[1726355057090,46.390964,137.62,137.57,14.25217798]
[1726355057386,46.390964,137.62,137.58,3.78428334]
[1726355057594,46.390964,137.62,137.57,14.25217798]
[1726355058185,46.390964,137.62,137.56,14.25217798]
[1726355058362,46.390964,137.62,137.57,23.7845013]
[1726355058567,46.390964,137.62,137.57,20.0]
[1726355061074,53.657364,137.62,137.55,14.25217798]
[1726355065289,53.657364,137.62,137.56,14.25217798]
[1726355069699,53.657364,137.62,137.55,14.25217798]
[1726355070086,7.2669,137.61,137.51,23.76012086]
[1726355070287,7.2669,137.61,137.51,16.154]
[1726355070288,24.027864,137.6,137.51,16.154]
[1726355070487,24.027864,137.6,137.54,20.0]
[1726355072318,24.027864,137.6,137.54,14.25217798]
[1726355080013,23.776884,137.61,137.55,20.0]
[1726355080214,23.776884,137.61,137.57,14.25217798]
[1726355083421,22.48859,137.62,137.57,14.25217798]
[1726355089111,22.48859,137.62,137.53,0.12549]
[1726355089415,23.776884,137.61,137.55,14.25217798]
[1726355092412,23.776884,137.61,137.56,14.25217798]
[1726355092621,22.48859,137.62,137.56,14.25217798]
[1726355092917,22.48859,137.62,137.57,14.25217798]
[1726355095398,22.48859,137.62,137.56,14.25217798]
[1726355097018,22.48859,137.62,137.55,14.25217798]
[1726355097626,24.027864,137.61,137.52,20.0]
[1726355097804,24.027864,137.61,137.54,14.25217798]
[1726355098012,24.027864,137.61,137.55,20.0]
[1726355098407,7.2675,137.6,137.55,20.0]
[1726355098702,7.2675,137.6,137.51,16.154]
[1726355098703,23.776884,137.59,137.53,14.25217798]
[1726355098903,23.776884,137.59,137.54,20.0]
[1726355099397,23.776884,137.59,137.54,14.25217798]
[1726355099802,23.776884,137.59,137.55,14.25217798]
[1726355100314,23.776884,137.6,137.55,14.25217798]
[1726355100816,24.027864,137.61,137.56,14.25217798]
[1726355101023,23.902374,137.61,137.56,14.25217798]
[1726355101214,29.6295,137.62,137.56,14.25217798]
[1726355102830,23.902374,137.61,137.56,14.25217798]
[1726355103608,29.6295,137.62,137.56,14.25217798]
[1726355103908,29.6295,137.62,137.52,20.0]
[1726355103909,29.6295,137.62,137.53,0.12549]
[1726355104110,29.6295,137.62,137.56,14.25217798]
[1726355108820,31.169374,137.61,137.53,0.12549]
[1726355109023,31.169374,137.61,137.54,14.25217798]
[1726355109211,7.2674,137.6,137.54,14.25217798]
[1726355109412,7.2674,137.6,137.54,20.0]
[1726355111912,7.2674,137.6,137.54,34.25217798]
[1726355120336,31.169274,137.61,137.55,14.25217798]
[1726355122838,23.902374,137.61,137.56,14.25217798]
[1726355125046,29.6295,137.62,137.57,15.70588762]
[1726355125340,22.3631,137.62,137.57,15.70588762]
[1726355130345,7.5198622,137.65,137.58,14.25217798]
[1726355130533,24.027864,137.64,137.58,15.70571912]
[1726355131626,23.776884,137.64,137.58,14.25217798]
[1726355131940,23.776884,137.64,137.59,14.25217798]
[1726355132625,23.3149622,137.65,137.59,14.25217798]
[1726355132826,23.3149622,137.65,137.6,1.45248149]
[1726355133234,23.3149622,137.65,137.59,14.25217798]
[1726355134723,16.0496622,137.65,137.59,14.25217798]
[1726355134926,16.0496622,137.65,137.61,14.25217798]
[1726355137146,16.0496622,137.65,137.59,14.25217798]
[1726355138328,23.776884,137.64,137.59,14.25217798]
[1726355143364,23.776884,137.64,137.6,14.25217798]
[1726355143657,23.3146622,137.65,137.6,14.25217798]
[1726355144164,16.0496622,137.65,137.6,14.25217798]
[1726355147041,16.0496622,137.65,137.56,20.12549]
[1726355147247,16.0496622,137.65,137.6,14.25217798]
[1726355147550,16.0496622,137.65,137.61,14.25217798]
[1726355148251,0.2545622,137.65,137.61,14.25217798]
[1726355148457,0.2545622,137.65,137.62,14.25217798]
[1726355152355,0.2545622,137.65,137.6,20.0]
[1726355152552,0.2545622,137.65,137.61,14.25217798]
[1726355153558,0.2545622,137.65,137.6,34.25217798]
[1726355158076,0.2545622,137.65,137.61,14.25217798]
[1726355158589,0.2545622,137.65,137.62,14.25217798]
[1726355159049,0.2545622,137.65,137.61,14.25217798]
[1726355164363,0.2545622,137.65,137.62,14.25217798]
[1726355167960,0.2545622,137.65,137.63,1.45304101]
[1726355168160,0.2545622,137.65,137.64,14.25217798]
[1726355175895,0.2545622,137.65,137.63,14.25217798]
[1726355177177,0.2545622,137.65,137.64,14.25217798]
[1726355185584,0.2545622,137.65,137.63,14.25217798]
[1726355188801,0.2545622,137.65,137.64,14.25217798]
[1726355199883,0.2545622,137.65,137.6,20.0]
[1726355200084,0.2545622,137.65,137.63,20.0]
[1726355200297,0.2545622,137.65,137.63,14.25217798]
[1726355200507,0.2545622,137.65,137.64,15.70504868]
[1726355212013,0.2545622,137.65,137.64,14.25217798]
[1726355221826,0.2545622,137.65,137.63,14.25217798]
[1726355222745,0.2545622,137.65,137.6,20.0]
[1726355223031,0.2545622,137.65,137.62,20.0]
[1726355223404,0.2545622,137.65,137.62,14.25217798]
[1726355223905,0.2545622,137.65,137.63,20.0]
[1726355228308,0.2545622,137.65,137.63,14.25217798]
[1726355232329,0.2545622,137.65,137.63,20.0]
[1726355235142,0.2545622,137.65,137.63,14.25217798]
[1726355240124,0.2545622,137.65,137.64,14.25217798]
[1726355249261,0.2545622,137.65,137.64,34.25217798]
[1726355249548,0.2545622,137.65,137.64,35.70477639]
[1726355250350,0.2545622,137.65,137.64,34.50315798]
[1726355250648,0.2545622,137.65,137.64,34.25217798]
[1726355256345,0.2545622,137.65,137.63,20.0]
[1726355256542,0.2545622,137.65,137.63,34.25217798]
[1726355257160,0.2545622,137.65,137.64,14.25217798]
[1726355263959,0.2545622,137.65,137.63,20.0]
[1726355264135,0.2545622,137.65,137.64,14.25217798]
[1726355276271,0.2545622,137.65,137.63,20.0]
[1726355276849,0.2545622,137.65,137.63,34.25217798]
[1726355278464,0.2545622,137.65,137.63,20.0]
[1726355278760,0.2545622,137.65,137.63,14.25217798]
[1726355281079,0.2545622,137.65,137.64,14.25217798]
[1726355286255,0.2545622,137.65,137.64,34.25217798]
[1726355289176,0.2545622,137.65,137.6,0.12549]
[1726355289471,0.2545622,137.65,137.63,20.0]
[1726355295371,0.2545622,137.65,137.63,14.25217798]
[1726355305061,0.2545622,137.65,137.64,3.77366799]
[1726355307185,0.2545622,137.65,137.63,14.25217798]
[1726355307882,0.2545622,137.65,137.64,3.7737349]
[1726355309891,0.2545622,137.65,137.63,14.25217798]
[1726355310093,0.2545622,137.65,137.64,3.7737349]
[1726355310291,0.2545622,137.65,137.64,18.02591288]
[1726355311790,0.2545622,137.65,137.64,3.7737349]
[1726355313271,0.2545622,137.65,137.63,14.25217798]
[1726355315276,0.2545622,137.65,137.6,20.0]
[1726355315593,0.2545622,137.65,137.61,18.02720282]
[1726355315796,0.2545622,137.65,137.61,14.25217798]
[1726355316890,0.2545622,137.65,137.62,14.25217798]
[1726355322112,0.2545622,137.65,137.6,20.0]
[1726355322282,0.2545622,137.65,137.62,14.25217798]
[1726355324503,0.2545622,137.65,137.61,14.25217798]
[1726355324887,0.2545622,137.65,137.61,15.70528654]
[1726355325201,0.2545622,137.65,137.61,14.25217798]
[1726355335906,0.2545622,137.65,137.6,34.25217798]
[1726355341208,0.2545622,137.65,137.61,1.4531902]
[1726355341394,0.2545622,137.65,137.62,1.45302785]
[1726355341598,0.2545622,137.65,137.62,15.70520583]
[1726355342408,0.2545622,137.65,137.62,14.25217798]
[1726355343100,0.2545622,137.65,137.61,14.25217798]
[1726355361198,0.2545622,137.65,137.6,20.0]
[1726355364623,0.2545622,137.65,137.6,14.25217798]
[1726355366122,0.2545622,137.65,137.61,14.25217798]
[1726355366429,0.2545622,137.65,137.62,14.25217798]
[1726355366722,23.776884,137.63,137.55,14.90168352]
[1726355366913,23.776884,137.61,137.54,14.25217798]
[1726355367108,23.776884,137.58,137.51,7.2975561]
[1726355367306,23.776884,137.58,137.52,14.25217798]
[1726355367901,23.776884,137.58,137.5,0.2545622]
[1726355368307,23.776884,137.58,137.52,14.25217798]
[1726355374533,23.776884,137.58,137.51,14.25217798]
[1726355375015,23.776884,137.58,137.52,20.0]
[1726355381847,23.776884,137.58,137.52,14.25217798]
[1726355384244,23.776884,137.58,137.53,14.25217798]
[1726355384547,23.776884,137.58,137.52,14.25217798]
[1726355386523,15.536,137.59,137.52,14.25217798]
[1726355393030,15.536,137.59,137.51,0.12549]
[1726355393240,15.536,137.59,137.52,14.25217798]
[1726355393451,15.536,137.59,137.51,0.25098]
[1726355393643,15.536,137.59,137.52,14.25217798]
[1726355395130,15.536,137.59,137.51,0.25098]
[1726355395452,15.536,137.59,137.52,14.25217798]
[1726355398544,15.536,137.59,137.53,14.25217798]
[1726355403457,22.804,137.59,137.51,0.12549]
[1726355403647,22.804,137.59,137.52,14.25217798]
[1726355410555,22.804,137.59,137.52,18.03804301]
[1726355410772,22.804,137.59,137.52,14.25217798]
[1726355411075,22.804,137.59,137.52,18.03804301]
[1726355411255,22.804,137.59,137.52,14.25217798]
[1726355411576,22.804,137.59,137.53,3.78586503]
[1726355412279,22.804,137.59,137.54,3.78586503]
[1726355412475,22.804,137.59,137.55,3.78586503]
[1726355412682,22.804,137.59,137.52,14.25217798]
[1726355412976,22.804,137.59,137.53,3.78463926]
[1726355413153,22.804,137.59,137.52,14.25217798]
[1726355413352,15.536,137.59,137.52,14.25217798]
[1726355413558,15.536,137.59,137.54,3.78499149]
[1726355413974,15.536,137.59,137.55,3.78499149]
[1726355414282,15.536,137.59,137.53,14.25217798]
[1726355414481,15.536,137.59,137.54,3.78470398]
[1726355414675,15.536,137.59,137.55,3.78470398]
[1726355414877,15.536,137.59,137.53,14.25217798]
[1726355430802,22.8041,137.59,137.53,14.25217798]
[1726355430993,22.8041,137.59,137.5,20.2545622]
[1726355431304,22.8041,137.59,137.52,14.25217798]
[1726355431492,31.045384,137.58,137.51,14.25217798]
[1726355431893,31.045384,137.58,137.52,20.0]
[1726355434320,23.776884,137.58,137.52,20.0]
[1726355434679,23.776884,137.58,137.52,14.25217798]
[1726355437205,23.776884,137.58,137.5,20.2545622]
[1726355437409,23.776884,137.58,137.52,20.0]
[1726355438601,23.776884,137.58,137.51,14.25217798]
[1726355438924,23.776884,137.58,137.52,20.0]
[1726355440215,23.776884,137.58,137.5,20.2545622]
[1726355440407,23.776884,137.56,137.5,0.2545622]
[1726355441091,23.776884,137.56,137.5,14.50674018]
[1726355443016,16.0834,137.55,137.5,14.50674018]
[1726355462612,16.0834,137.55,137.51,15.51812236]
[1726355462812,16.0834,137.55,137.51,14.25217798]
[1726355464724,16.0834,137.55,137.5,0.2545622]
[1726355465232,16.0834,137.55,137.5,14.50674018]
[1726355469536,16.0834,137.55,137.5,0.2545622]
[1726355469845,16.0834,137.55,137.5,14.50674018]
[1726355474264,16.0834,137.55,137.5,0.2545622]
[1726355474766,31.047484,137.54,137.5,0.2545622]
[1726355475346,23.776884,137.54,137.5,0.2545622]
[1726355494282,23.3535,137.55,137.5,0.2545622]
[1726355494283,16.0834,137.55,137.5,0.2545622]
[1726355500408,16.0834,137.55,137.5,4.04483498]
[1726355500701,16.0834,137.55,137.5,0.2545622]
[1726355502411,16.0834,137.55,137.5,4.04483498]
[1726355502615,16.0834,137.55,137.5,0.2545622]
[1726355502910,16.0834,137.55,137.5,4.04483498]
[1726355503211,16.0834,137.55,137.5,0.2545622]
[1726355503389,16.0834,137.55,137.5,4.04483498]
[1726355503589,16.0834,137.55,137.5,0.2545622]
[1726355503825,16.0834,137.55,137.5,4.04483498]
[1726355504010,16.0834,137.55,137.5,0.2545622]
[1726355504303,16.0834,137.55,137.5,4.04483498]
[1726355504510,16.0834,137.55,137.5,0.2545622]
[1726355504809,16.0834,137.55,137.5,4.04483498]
[1726355505008,16.0834,137.55,137.5,0.2545622]
[1726355505213,16.0834,137.55,137.5,4.04483498]
[1726355505398,16.0834,137.55,137.5,0.2545622]
[1726355505595,16.0834,137.55,137.5,4.04483498]
[1726355505797,16.0834,137.55,137.5,0.2545622]
[1726355505997,16.0834,137.55,137.5,4.04483498]
[1726355506204,16.0834,137.55,137.5,0.2545622]
[1726355506508,16.0834,137.55,137.5,4.04483498]
[1726355506806,16.0834,137.55,137.5,0.2545622]
[1726355507010,16.0834,137.55,137.5,4.04483498]
[1726355507189,16.0834,137.55,137.5,0.2545622]
[1726355507390,16.0834,137.55,137.5,4.04483498]
[1726355507589,16.0834,137.55,137.5,0.2545622]
[1726355507799,16.0834,137.55,137.5,4.04483498]
[1726355507989,16.0834,137.55,137.5,0.2545622]
[1726355508189,16.0834,137.55,137.5,4.04483498]
[1726355508392,16.0834,137.55,137.5,0.2545622]
[1726355508603,16.0834,137.55,137.5,4.04483498]
[1726355508792,16.0834,137.55,137.5,0.2545622]
[1726355508991,16.0834,137.55,137.5,4.04483498]
[1726355509193,16.0834,137.55,137.5,0.2545622]
[1726355509411,16.0834,137.55,137.5,4.04483498]
[1726355509598,16.0834,137.55,137.5,0.2545622]
[1726355513217,16.0834,137.55,137.51,3.78928318]
[1726355513824,16.0834,137.55,137.5,0.2545622]
[1726355514716,16.0834,137.55,137.51,3.78945685]
[1726355515224,16.0834,137.55,137.5,0.2545622]
[1726355516031,16.0834,137.55,137.51,3.78945369]
[1726355516194,16.0834,137.55,137.5,0.2545622]
[1726355516395,16.0834,137.55,137.51,3.78977906]
[1726355517635,16.0834,137.55,137.5,0.2545622]
[1726355517799,16.0834,137.55,137.51,3.78967874]
[1726355517998,16.0834,137.55,137.5,0.2545622]
[1726355518518,16.0834,137.55,137.51,3.7894048]
[1726355518730,16.0834,137.55,137.5,0.2545622]
[1726355519519,16.0834,137.55,137.51,3.7894048]
[1726355519714,16.0834,137.55,137.5,0.2545622]
[1726355520024,16.0834,137.55,137.51,3.78967553]
[1726355520330,16.0834,137.55,137.5,0.2545622]
[1726355520621,16.0834,137.55,137.51,3.78961014]
[1726355520929,16.0834,137.55,137.5,0.2545622]
[1726355521108,16.0834,137.55,137.51,3.78967865]
[1726355521317,16.0834,137.55,137.5,0.2545622]
[1726355521620,16.0834,137.55,137.51,3.7894439]
[1726355521825,16.0834,137.55,137.5,0.2545622]
[1726355522014,16.0834,137.55,137.51,3.78957095]
[1726355522216,16.0834,137.55,137.5,0.2545622]
[1726355522526,16.0834,137.55,137.51,3.78942937]
[1726355522729,16.0834,137.55,137.5,0.2545622]
[1726355522913,16.0834,137.55,137.51,3.78943082]
[1726355523101,16.0834,137.55,137.5,0.2545622]
[1726355523426,16.0834,137.55,137.51,3.78965642]
[1726355523605,16.0834,137.55,137.5,0.2545622]
[1726355523805,16.0834,137.55,137.51,3.78957172]
[1726355524111,16.0834,137.55,137.5,0.2545622]
[1726355524310,16.0834,137.55,137.51,3.78957095]
[1726355524518,16.0834,137.55,137.5,0.2545622]
[1726355524717,16.0834,137.55,137.51,3.78957172]
[1726355524923,16.0834,137.55,137.5,0.2545622]
[1726355525226,16.0834,137.55,137.51,3.78957095]
[1726355525405,16.0834,137.55,137.5,0.2545622]
[1726355525605,16.0834,137.55,137.51,3.78957095]
[1726355525806,16.0834,137.55,137.5,0.2545622]
[1726355526106,16.0834,137.55,137.51,3.78957172]
[1726355526401,16.0834,137.55,137.5,0.2545622]
[1726355526608,16.0834,137.55,137.51,3.78940154]
[1726355526813,16.0834,137.55,137.5,0.2545622]
[1726355527108,16.0834,137.55,137.51,3.78938555]
[1726355527607,16.0834,137.55,137.5,0.2545622]
[1726355528225,16.0834,137.55,137.51,3.78922269]
[1726355528412,16.0834,137.55,137.5,0.2545622]
[1726355528613,16.0834,137.55,137.51,3.78926622]
[1726355528823,16.0834,137.55,137.5,0.2545622]
[1726355529014,16.0834,137.55,137.51,3.78922946]
[1726355529218,16.0834,137.55,137.5,0.2545622]
[1726355529418,16.0834,137.55,137.51,3.78923023]
[1726355529619,16.0834,137.55,137.5,0.2545622]
[1726355529822,16.0834,137.55,137.51,3.78917269]
[1726355530130,16.0834,137.55,137.5,0.2545622]
[1726355530317,16.0834,137.55,137.51,3.78928777]
[1726355531206,16.0834,137.55,137.5,0.2545622]
[1726355541339,23.776884,137.54,137.5,0.2545622]
[1726355552746,16.0834,137.55,137.5,0.2545622]
[1726355576562,16.0834,137.55,137.5,14.50674018]
[1726355577258,16.0834,137.55,137.52,14.25217798]
[1726355577444,6.1552,137.56,137.52,14.25217798]
[1726355577761,20.0,137.58,137.52,14.25217798]
[1726355578753,23.776884,137.57,137.52,14.25217798]
[1726355580660,23.776884,137.57,137.5,14.50674018]
[1726355582272,31.045984,137.57,137.5,14.50674018]
[1726355584463,31.045984,137.57,137.51,14.25217798]
[1726355587465,31.045984,137.57,137.5,0.2545622]
[1726355587763,31.045984,137.57,137.51,14.25217798]
[1726355588566,29.1447,137.55,137.5,0.2545622]
[1726355588770,23.776884,137.54,137.5,0.2545622]
[1726355590364,21.8742,137.55,137.5,0.2545622]
[1726355591447,21.8742,137.55,137.51,3.78795486]
[1726355591769,21.8742,137.55,137.52,3.78795486]
[1726355592069,21.8742,137.55,137.5,0.2545622]
[1726355592266,21.8742,137.55,137.51,3.7887107]
[1726355592464,21.8742,137.55,137.52,3.7887107]
[1726355592664,21.8742,137.55,137.5,0.2545622]
[1726355593162,21.8742,137.55,137.51,3.78920138]
[1726355593362,21.8742,137.55,137.5,0.2545622]
[1726355593547,21.8742,137.55,137.51,3.7897421]
[1726355593749,21.8742,137.55,137.5,0.2545622]
[1726355593951,21.8742,137.55,137.51,3.78977598]
[1726355594150,21.8742,137.55,137.5,0.2545622]
[1726355594361,21.8742,137.55,137.51,3.7894577]
[1726355594662,21.8742,137.55,137.5,0.2545622]
[1726355594965,21.8742,137.55,137.51,3.78960082]
[1726355595260,21.8742,137.55,137.5,0.2545622]
[1726355595470,21.8742,137.55,137.51,3.78964378]
[1726355595642,21.8742,137.55,137.52,3.78964378]
[1726355595942,21.8742,137.55,137.5,0.2545622]
[1726355596140,21.8742,137.55,137.51,3.78936851]
[1726355596345,21.8742,137.55,137.52,3.78936851]
[1726355596572,21.8742,137.55,137.5,0.2545622]
[1726355596972,21.8742,137.55,137.51,3.7891918]
[1726355597470,21.8742,137.55,137.52,3.7891918]
[1726355597669,21.8742,137.55,137.5,0.2545622]
[1726355600572,23.902374,137.54,137.5,0.2545622]
[1726355601189,23.776884,137.54,137.5,0.2545622]
[1726355605178,21.8742,137.55,137.5,0.2545622]
[1726355605551,24.027864,137.54,137.5,0.2545622]
[1726355615166,15.6489,137.55,137.5,14.50674018]
[1726355619287,44.027864,137.55,137.5,14.50674018]
[1726355630871,44.027864,137.55,137.5,0.2545622]
[1726355632299,51.297964,137.55,137.5,0.2545622]
[1726355638810,44.027864,137.55,137.5,0.2545622]
[1726355640915,51.297964,137.55,137.5,0.2545622]
[1726355644507,44.027864,137.55,137.5,0.2545622]
[1726355649610,23.776884,137.51,137.5,0.2545622]
[1726355650306,31.425454,137.51,137.5,0.2545622]
[1726355650691,51.425454,137.51,137.5,0.2545622]
[1726355651615,52.69450573,137.51,137.5,0.2545622]
[1726355652000,102.69450573,137.51,137.5,0.2545622]
[1726355655822,52.69450573,137.51,137.5,0.2545622]
[1726355658028,51.425454,137.51,137.5,0.2545622]